bitfinex-derivatives/quotes_BNBF0:USTF0_20251027
["timestamp","ask_amount","ask_price","bid_price","bid_amount"]
[1761540238523,0.15182882,1147.8,1145.6,0.55799208]
[1761540238721,0.15182882,1147.8,1145.7,0.55799208]
[1761540239021,0.15182882,1147.8,1145.2,1.196]
[1761540239219,0.15182882,1147.8,1145.3,0.55790475]
[1761540239418,0.15182882,1147.8,1145.4,0.55790475]
[1761540239621,0.15182882,1147.8,1145.5,0.55790475]
[1761540239824,0.15182882,1147.8,1145.6,0.55790475]
[1761540240024,0.15182882,1147.8,1145.7,0.55790475]
[1761540240223,0.15182882,1147.8,1145.2,1.196]
[1761540240423,0.15182882,1147.8,1145.3,0.55782836]
[1761540240623,0.15182882,1147.8,1145.4,0.55782836]
[1761540240824,0.15182882,1147.8,1145.5,0.55782836]
[1761540241026,0.15182882,1147.8,1145.6,0.55782836]
[1761540241327,0.15182882,1147.8,1145.7,0.55782836]
[1761540241527,0.15182882,1147.8,1145.2,1.196]
[1761540241725,0.15182882,1147.8,1145.3,0.557762]
[1761540241926,0.15182882,1147.8,1145.4,0.557762]
[1761540242130,0.15182882,1147.8,1145.5,0.557762]
[1761540242424,0.15182882,1147.8,1145.6,0.557762]
[1761540242724,0.15182882,1147.8,1145.7,0.557762]
[1761540242929,0.15182882,1147.8,1145.2,1.196]
[1761540243126,0.15182882,1147.8,1145.3,0.55770217]
[1761540243325,0.15182882,1147.8,1145.4,0.55770217]
[1761540243528,0.15182882,1147.8,1145.5,0.55770217]
[1761540243829,0.15182882,1147.8,1145.6,0.55770217]
[1761540244125,0.15182882,1147.8,1145.7,0.55770217]
[1761540244329,0.15182882,1147.8,1145.2,1.196]
[1761540244525,0.15182882,1147.8,1145.3,0.55757924]
[1761540244725,0.15182882,1147.8,1145.4,0.55757924]
[1761540244927,0.15182882,1147.8,1145.2,1.196]
[1761540244928,0.15182882,1147.8,1145.5,0.55757924]
[1761540245126,0.15182882,1147.8,1145.6,0.55757924]
[1761540245428,0.15182882,1147.8,1145.7,0.55757924]
[1761540245631,0.15182882,1147.8,1145.2,1.196]
[1761540245829,0.15182882,1147.8,1145.3,0.55751754]
[1761540246030,0.15182882,1147.8,1145.2,1.196]
[1761540246031,0.15182882,1147.8,1145.4,0.55751754]
[1761540246231,0.15182882,1147.8,1145.5,0.55751754]
[1761540246438,0.15182882,1147.8,1145.6,0.55751754]
[1761540246630,0.15182882,1147.8,1145.7,0.55751754]
[1761540246832,0.15182882,1147.8,1145.8,0.55751754]
[1761540247028,0.15182882,1147.8,1145.4,0.64860815]
[1761540247232,0.15182882,1147.8,1145.5,0.55728223]
[1761540247429,0.15182882,1147.8,1145.6,0.55728223]
[1761540247635,0.15182882,1147.8,1145.7,0.55728223]
[1761540247834,0.15182882,1147.8,1145.8,0.55728223]
[1761540248034,0.15182882,1147.8,1145.4,0.64860815]
[1761540248230,0.15182882,1147.8,1145.5,0.55709746]
[1761540248434,0.15182882,1147.8,1145.6,0.55709746]
[1761540248635,0.15182882,1147.8,1145.7,0.55709746]
[1761540248831,0.15182882,1147.8,1145.8,0.55709746]
[1761540249135,0.15182882,1147.8,1145.3,0.64860815]
[1761540249136,0.15182882,1147.8,1145.4,0.64860815]
[1761540249336,2.15100723,1147.7,1145.5,1.20550017]
[1761540249532,0.15182882,1147.8,1145.6,0.55689202]
[1761540249732,0.15182882,1147.8,1145.7,0.55689202]
[1761540249936,0.15182882,1147.8,1145.8,0.55689202]
[1761540250133,0.15182882,1147.8,1145.9,0.55689202]
[1761540250332,0.15182882,1147.8,1146.0,0.55689202]
[1761540250632,0.15182882,1147.8,1145.7,0.64860815]
[1761540250837,0.15182882,1147.8,1145.8,0.5561872]
[1761540251133,0.15182882,1147.8,1145.9,0.5561872]
[1761540251332,0.15182882,1147.8,1146.0,0.5561872]
[1761540251534,0.15182882,1147.8,1145.6,0.64860815]
[1761540251732,0.15182882,1147.8,1145.7,0.55587657]
[1761540251934,0.15182882,1147.8,1145.8,0.55587657]
[1761540252138,0.15182882,1147.8,1145.9,0.55587657]
[1761540252338,0.15182882,1147.8,1146.0,0.55587657]
[1761540252538,0.15182882,1147.8,1145.6,0.64860815]
[1761540252738,0.15182882,1147.8,1145.7,0.55560192]
[1761540252935,0.15182882,1147.8,1145.8,0.55560192]
[1761540253136,0.15182882,1147.8,1145.9,0.55560192]
[1761540253341,0.15182882,1147.8,1145.6,0.64860815]
[1761540253541,0.15182882,1147.8,1145.7,0.55540668]
[1761540253741,0.15182882,1147.8,1145.8,0.55540668]
[1761540253940,0.15182882,1147.8,1145.9,0.55540668]
[1761540254136,0.15182882,1147.8,1145.5,0.64860815]
[1761540254441,0.15182882,1147.8,1145.6,0.55539645]
[1761540254737,0.15182882,1147.8,1145.7,0.55539645]
[1761540254937,0.15182882,1147.8,1145.8,0.55539645]
[1761540255140,0.15182882,1147.8,1145.9,0.55539645]
[1761540255437,0.15182882,1147.8,1145.5,0.64860815]
[1761540255641,0.15182882,1147.8,1145.6,0.55509796]
[1761540255938,0.15182882,1147.8,1145.7,0.55509796]
[1761540256141,0.15182882,1147.8,1145.8,0.55509796]
[1761540256342,0.15182882,1147.8,1145.9,0.55509796]
[1761540256541,0.15182882,1147.8,1145.4,0.64860815]
[1761540256738,0.15182882,1147.8,1145.5,0.55495902]
[1761540256942,0.15182882,1147.8,1145.6,0.55495902]
[1761540257140,0.15182882,1147.8,1145.7,0.55495902]
[1761540257344,0.15182882,1147.8,1145.8,0.55495902]
[1761540257639,0.15182882,1147.8,1145.4,0.64860815]
[1761540257840,0.15182882,1147.8,1145.5,0.55489281]
[1761540258040,0.15182882,1147.8,1145.6,0.55489281]
[1761540258244,0.15182882,1147.8,1145.7,0.55489281]
[1761540258446,0.15182882,1147.8,1145.8,0.55489281]
[1761540258645,0.15182882,1147.8,1145.4,0.64860815]
[1761540258942,0.15182882,1147.8,1145.5,0.55480468]
[1761540259144,0.15182882,1147.8,1145.6,0.55480468]
[1761540259340,0.15182882,1147.8,1145.7,0.55480468]
[1761540259640,0.15182882,1147.8,1145.8,0.55480468]
[1761540259839,0.15182882,1147.8,1145.4,0.64860815]
[1761540260040,0.15182882,1147.8,1145.5,0.55472449]
[1761540260244,0.15182882,1147.8,1145.6,0.55472449]
[1761540260441,0.15182882,1147.8,1145.7,0.55472449]
[1761540260641,0.15182882,1147.8,1145.8,0.55472449]
[1761540260840,0.15182882,1147.8,1145.4,0.64860815]
[1761540261045,0.15182882,1147.8,1145.5,0.55465165]
[1761540261245,0.15182882,1147.8,1145.6,0.55465165]
[1761540261443,0.15182882,1147.8,1145.7,0.55465165]
[1761540261642,0.15182882,1147.8,1145.8,0.55465165]
[1761540261841,0.15182882,1147.8,1145.4,0.64860815]
[1761540262040,0.15182882,1147.8,1145.5,0.5545931]
[1761540262243,0.15182882,1147.8,1145.6,0.5545931]
[1761540262442,0.15182882,1147.8,1145.7,0.5545931]
[1761540262642,0.15182882,1147.8,1145.2,1.84460815]
[1761540262845,0.15182882,1147.8,1145.3,0.55464785]
[1761540263043,0.15182882,1147.8,1145.4,0.55464785]
[1761540263343,0.15182882,1147.8,1145.5,0.55464785]
[1761540263546,0.15182882,1147.8,1145.6,0.55464785]
[1761540263746,0.15182882,1147.8,1145.7,0.55464785]
[1761540263945,0.15182882,1147.8,1145.2,1.84460815]
[1761540264147,0.15182882,1147.8,1145.3,0.55464778]
[1761540264346,0.15182882,1147.8,1145.4,0.55464778]
[1761540264548,0.15182882,1147.8,1145.2,1.84460815]
[1761540264549,0.15182882,1147.8,1145.5,0.55464778]
[1761540264749,0.15182882,1147.8,1145.6,0.55464778]
[1761540264948,0.15182882,1147.8,1145.7,0.55464778]
[1761540265149,0.15182882,1147.8,1145.8,0.55464778]
[1761540265347,0.15182882,1147.8,1145.3,0.64860815]
[1761540265646,0.15182882,1147.8,1145.4,0.55580822]
[1761540265946,0.15182882,1147.8,1145.5,0.55580822]
[1761540266246,0.15182882,1147.8,1145.6,0.55580822]
[1761540266547,0.15182882,1147.8,1145.7,0.55580822]
[1761540266745,0.15182882,1147.8,1145.8,0.55580822]
[1761540266947,0.15182882,1147.8,1145.3,0.64860815]
[1761540267150,0.15182882,1147.8,1145.4,0.55582331]
[1761540267351,0.15182882,1147.8,1145.5,0.55582331]
[1761540267651,0.15182882,1147.8,1145.6,0.55582331]
[1761540267850,0.15182882,1147.8,1145.7,0.55582331]
[1761540268056,0.15182882,1147.8,1145.8,0.55582331]
[1761540268250,0.15182882,1147.8,1145.3,0.64860815]
[1761540268452,0.15182882,1147.8,1145.4,0.5558559]
[1761540268648,0.15182882,1147.8,1145.5,1.8178559]
[1761540268854,0.15182882,1147.8,1145.6,0.5558559]
[1761540269152,0.15182882,1147.8,1145.7,0.5558559]
[1761540269350,0.15182882,1147.8,1145.5,1.262]
[1761540269649,0.15182882,1147.8,1145.6,0.55590975]
[1761540269853,0.15182882,1147.8,1145.5,1.262]
[1761540270053,0.15182882,1147.8,1145.6,0.55593839]
[1761540270252,0.15182882,1147.8,1145.5,1.262]
[1761540270455,0.15182882,1147.8,1145.6,0.55601091]
[1761540270651,0.15182882,1147.8,1145.5,1.262]
[1761540270856,0.15182882,1147.8,1145.6,0.55601091]
[1761540271055,0.15182882,1147.8,1145.5,1.262]
[1761540271257,0.15182882,1147.8,1145.6,0.55601629]
[1761540271454,0.15182882,1147.8,1145.5,1.262]
[1761540271654,0.15182882,1147.8,1145.6,0.55608389]
[1761540271852,0.15182882,1147.8,1145.5,1.262]
[1761540272054,0.15182882,1147.8,1145.6,0.55608389]
[1761540272253,0.15182882,1147.8,1145.5,1.262]
[1761540272456,0.15182882,1147.8,1145.6,0.55618889]
[1761540272753,0.15182882,1147.8,1145.5,1.262]
[1761540272953,0.15182882,1147.8,1145.6,0.55618845]
[1761540273156,0.15182882,1147.8,1145.5,1.262]
[1761540273358,0.15182882,1147.8,1145.6,0.55624409]
[1761540273659,0.15182882,1147.8,1145.5,1.262]
[1761540273959,0.15182882,1147.8,1145.6,0.55627835]
[1761540274154,0.15182882,1147.8,1145.5,1.262]
[1761540275955,0.15182882,1147.8,1145.6,0.55647676]
[1761540276159,0.15182882,1147.8,1145.5,1.262]
[1761540276456,0.15182882,1147.8,1145.6,0.55654705]
[1761540276656,0.15182882,1147.8,1145.5,1.262]
[1761540276859,0.15182882,1147.8,1145.6,0.55658018]
[1761540277056,0.15182882,1147.8,1145.5,1.262]
[1761540277262,0.15182882,1147.8,1145.6,0.55657492]
[1761540277461,0.15182882,1147.8,1145.7,0.55657492]
[1761540277661,0.15182882,1147.8,1145.5,1.262]
[1761540277861,0.15182882,1147.8,1145.6,0.55665182]
[1761540278066,0.15182882,1147.8,1145.7,0.55665182]
[1761540278367,0.15182882,1147.8,1145.5,1.262]
[1761540278566,0.15182882,1147.8,1145.6,0.5567137]
[1761540278765,0.15182882,1147.8,1145.7,0.5567137]
[1761540278963,0.15182882,1147.8,1145.5,1.262]
[1761540279267,0.15182882,1147.8,1145.6,0.55671877]
[1761540279466,0.15182882,1147.8,1145.7,0.55671877]
[1761540279664,0.15182882,1147.8,1145.5,1.262]
[1761540279962,0.15182882,1147.8,1145.6,0.55678042]
[1761540280169,0.15182882,1147.8,1145.5,1.262]
[1761540280368,0.15182882,1147.8,1145.6,0.5568154]
[1761540280567,0.15182882,1147.8,1145.5,1.262]
[1761540280863,0.15182882,1147.8,1145.6,0.55684041]
[1761540281067,0.15182882,1147.8,1145.5,1.262]
[1761540281267,0.15182882,1147.8,1145.6,0.55684073]
[1761540281468,0.15182882,1147.8,1145.5,1.262]
[1761540281665,0.15182882,1147.8,1145.6,0.55690493]
[1761540281869,0.15182882,1147.8,1145.5,1.262]
[1761540282065,0.15182882,1147.8,1145.6,0.55690493]
[1761540282269,0.15182882,1147.8,1145.5,1.262]
[1761540282467,0.15182882,1147.8,1145.6,0.55697857]
[1761540282670,0.15182882,1147.8,1145.5,1.262]
[1761540282873,0.15182882,1147.8,1145.6,0.55697547]
[1761540283070,0.15182882,1147.8,1145.5,1.262]
[1761540283372,0.15182882,1147.8,1145.6,0.55697536]
[1761540283570,0.15182882,1147.8,1145.5,1.262]
[1761540283867,0.15182882,1147.8,1145.6,0.55705372]
[1761540284071,0.15182882,1147.8,1145.5,1.262]
[1761540284270,0.15182882,1147.8,1145.6,0.55710354]
[1761540284573,0.15182882,1147.8,1145.5,1.262]
[1761540284769,0.15182882,1147.8,1145.6,0.55713193]
[1761540284973,0.15182882,1147.8,1145.5,1.262]
[1761540285170,0.15182882,1147.8,1145.6,0.55713193]
[1761540285371,0.15182882,1147.8,1145.5,1.262]
[1761540285572,0.15182882,1147.8,1145.6,0.55721545]
[1761540285771,0.15182882,1147.8,1145.5,1.262]
[1761540285975,0.15182882,1147.8,1145.6,0.55721545]
[1761540286275,0.15182882,1147.8,1145.5,1.262]
[1761540286471,0.15182882,1147.8,1145.6,0.55730397]
[1761540286674,0.15182882,1147.8,1145.5,1.262]
[1761540286875,0.15182882,1147.8,1145.6,0.55729879]
[1761540287075,2.30283605,1147.8,1145.5,1.262]
[1761540287276,2.30283605,1147.8,1145.6,0.55729868]
[1761540287476,2.30283605,1147.8,1145.5,1.262]
[1761540287676,2.30283605,1147.8,1145.6,0.55739466]
[1761540287876,2.30283605,1147.8,1145.5,1.262]
[1761540288171,2.30283605,1147.8,1145.6,0.55739477]
[1761540288372,2.30283605,1147.8,1145.5,1.262]
[1761540288671,2.15100723,1147.7,1145.6,0.5574967]
[1761540288873,2.15100723,1147.7,1145.5,1.262]
[1761540289074,2.30283605,1147.8,1145.6,0.5574967]
[1761540289274,2.30283605,1147.8,1145.7,0.5574967]
[1761540289472,2.30283605,1147.8,1145.5,1.262]
[1761540289673,2.30283605,1147.8,1145.6,0.55759921]
[1761540289874,2.30283605,1147.8,1145.7,0.55759921]
[1761540290177,2.30283605,1147.8,1145.5,1.262]
[1761540290376,2.30283605,1147.8,1145.6,0.55768555]
[1761540290575,2.30283605,1147.8,1145.7,0.55768555]
[1761540290877,0.15182882,1147.8,1145.5,1.262]
[1761540291073,0.15182882,1147.8,1145.6,0.55770969]
[1761540291274,0.15182882,1147.8,1145.7,0.55770969]
[1761540291479,0.15182882,1147.8,1145.8,0.55770969]
[1761540291774,0.15182882,1147.8,1145.5,1.262]
[1761540292077,0.15182882,1147.8,1145.6,0.557829]
[1761540292375,0.15182882,1147.8,1145.7,0.557829]
[1761540292574,0.15182882,1147.8,1145.8,0.557829]
[1761540292776,0.15182882,1147.8,1145.5,1.262]
[1761540292974,0.15182882,1147.8,1145.6,0.55796667]
[1761540293173,0.15182882,1147.8,1145.7,0.55796667]
[1761540293377,0.15182882,1147.8,1145.8,0.55796667]
[1761540293579,0.15182882,1147.8,1145.5,1.262]
[1761540293775,0.15182882,1147.8,1145.6,0.55809987]
[1761540294079,0.15182882,1147.8,1145.7,0.55809987]
[1761540294276,0.15182882,1147.8,1145.8,0.55809987]
[1761540294474,0.15182882,1147.8,1145.5,1.262]
[1761540294475,2.30283605,1147.8,1145.5,1.262]
[1761540294672,2.30283605,1147.8,1145.6,0.55803596]
[1761540294875,0.15182882,1147.8,1145.7,0.55803596]
[1761540295073,0.15182882,1147.8,1145.8,0.55803596]
[1761540295305,0.15182882,1147.8,1145.5,1.262]
[1761540295481,0.15182882,1147.8,1145.6,0.55814959]
[1761540295676,0.15182882,1147.8,1145.7,0.55814959]
[1761540295879,0.15182882,1147.8,1145.8,0.55814959]
[1761540296079,0.15182882,1147.8,1145.5,1.262]
[1761540296375,0.15182882,1147.8,1145.6,0.55816741]
[1761540296573,0.15182882,1147.8,1145.7,0.55816741]
[1761540296776,0.15182882,1147.8,1145.8,0.55816741]
[1761540297075,0.15182882,1147.8,1145.5,1.262]
[1761540297278,0.15182882,1147.8,1145.6,0.5581853]
[1761540297479,0.15182882,1147.8,1145.7,0.5581853]
[1761540297677,0.15182882,1147.8,1145.8,0.5581853]
[1761540297976,0.15182882,1147.8,1145.5,1.262]
[1761540298179,0.15182882,1147.8,1145.6,0.55823142]
[1761540298481,0.15182882,1147.8,1145.5,1.262]
[1761540298482,0.15182882,1147.8,1145.7,0.55823142]
[1761540298681,0.15182882,1147.8,1145.8,0.55823142]
[1761540298881,0.15182882,1147.8,1145.5,1.91060815]
[1761540298882,0.15182882,1147.8,1145.9,0.55823142]
[1761540299085,0.15182882,1147.8,1145.5,1.91060815]
[1761540299281,0.15182882,1147.8,1145.6,0.55825147]
[1761540299479,0.15182882,1147.8,1145.7,0.55825147]
[1761540299677,0.15182882,1147.8,1145.8,0.55825147]
[1761540299879,0.15182882,1147.8,1145.5,1.91060815]
[1761540299880,0.15182882,1147.8,1145.9,0.55825147]
[1761540300083,0.15182882,1147.8,1145.5,1.91060815]
[1761540300283,0.15182882,1147.8,1145.6,0.55830603]
[1761540300484,0.15182882,1147.8,1145.7,0.55830603]
[1761540300680,0.15182882,1147.8,1145.8,1.20691418]
[1761540300881,0.15182882,1147.8,1145.9,0.55830603]
[1761540301080,0.15182882,1147.8,1146.0,0.55830603]
[1761540301280,0.15182882,1147.8,1146.1,0.55830603]
[1761540301485,0.15182882,1147.8,1145.8,0.64860815]
[1761540301685,0.15182882,1147.8,1145.9,0.55821296]
[1761540301981,0.15182882,1147.8,1146.0,0.55821296]
[1761540302181,0.15182882,1147.8,1146.1,0.55821296]
[1761540302380,0.15182882,1147.8,1145.8,0.64860815]
[1761540302585,0.15182882,1147.8,1145.9,0.55821666]
[1761540302786,0.15182882,1147.8,1146.0,0.55821666]
[1761540303082,0.15182882,1147.8,1146.1,0.55821666]
[1761540303282,0.15182882,1147.8,1145.8,0.64860815]
[1761540303484,0.15182882,1147.8,1145.9,0.55817696]
[1761540303784,0.15182882,1147.8,1146.0,0.55817696]
[1761540303984,0.15182882,1147.8,1146.1,0.55817696]
[1761540304180,0.15182882,1147.8,1146.2,0.55817696]
[1761540304380,0.15182882,1147.8,1146.3,0.55817696]
[1761540304585,0.15182882,1147.8,1146.0,0.64860815]
[1761540304785,0.15182882,1147.8,1146.1,0.55804803]
[1761540304985,0.15182882,1147.8,1146.2,0.55804803]
[1761540305189,2.15100723,1148.2,1146.3,0.55804803]
[1761540305387,0.15175996,1148.0,1146.0,0.64860815]
[1761540305585,0.15175996,1148.0,1146.1,0.55789286]
[1761540305784,0.15175996,1148.0,1146.2,0.55789286]
[1761540305988,0.15175996,1148.0,1146.3,0.55789286]
[1761540306189,0.15175996,1148.0,1146.4,0.55788963]
[1761540306485,0.15175996,1148.0,1146.0,0.64860815]
[1761540306788,0.15175996,1148.0,1146.1,0.55769298]
[1761540306987,0.15175996,1148.0,1146.2,0.55769298]
[1761540307185,0.15175996,1148.0,1146.3,0.55769298]
[1761540307388,0.15175996,1148.0,1146.4,0.55769298]
[1761540307582,0.15175996,1148.0,1146.0,0.64860815]
[1761540307789,0.15175996,1148.0,1146.1,0.55748551]
[1761540307993,0.15175996,1148.0,1146.2,0.55748551]
[1761540308184,0.15175996,1148.0,1146.3,0.55748551]
[1761540308388,0.15175996,1148.0,1146.4,0.55748551]
[1761540308584,0.15175996,1148.0,1146.0,0.64860815]
[1761540308884,0.15175996,1148.0,1146.1,0.55730178]
[1761540309083,0.15175996,1148.0,1146.2,0.55730178]
[1761540309289,0.15175996,1148.0,1146.3,0.55730178]
[1761540309489,0.15175996,1148.0,1146.4,0.55730178]
[1761540309788,0.15175996,1148.0,1146.0,0.64860815]
[1761540309989,0.15175996,1148.0,1146.1,0.5571231]
[1761540310190,0.15175996,1148.0,1146.2,0.5571231]
[1761540310389,0.15175996,1148.0,1146.3,0.5571231]
[1761540310690,0.15175996,1148.0,1146.4,0.5571231]
[1761540310885,0.15175996,1148.0,1145.9,0.64860815]
[1761540311088,0.15175996,1148.0,1146.0,0.55697725]
[1761540311388,0.15175996,1148.0,1146.1,0.55697725]
[1761540311589,0.15175996,1148.0,1146.2,0.55697725]
[1761540311785,0.15175996,1148.0,1146.3,0.55697725]
[1761540312088,0.15175996,1148.0,1146.4,0.55697725]
[1761540312288,0.15175996,1148.0,1145.9,0.64860815]
[1761540312486,0.15175996,1148.0,1146.0,0.55671147]
[1761540312686,0.15175996,1148.0,1146.1,0.55671147]
[1761540312885,0.15175996,1148.0,1146.2,0.55671147]
[1761540313089,0.15175996,1148.0,1146.3,0.55671147]
[1761540313290,0.15175996,1148.0,1145.9,0.64860815]
[1761540313590,0.15175996,1148.0,1146.0,0.55658248]
[1761540313789,0.15175996,1148.0,1146.1,0.55658248]
[1761540313987,0.15175996,1148.0,1146.2,0.55658248]
[1761540314190,0.15175996,1148.0,1146.3,0.55658248]
[1761540314386,0.15175996,1148.0,1145.9,0.64860815]
[1761540314588,0.15175996,1148.0,1146.0,0.55645469]
[1761540314787,0.15175996,1148.0,1146.1,0.55645469]
[1761540314987,0.15175996,1148.0,1146.2,0.55645469]
[1761540315191,0.15175996,1148.0,1146.3,0.55645469]
[1761540315392,0.15175996,1148.0,1145.9,0.64860815]
[1761540315590,0.15175996,1148.0,1146.0,0.5563354]
[1761540315892,0.15175996,1148.0,1146.1,0.5563354]
[1761540316093,0.15175996,1148.0,1146.2,0.5563354]
[1761540316293,0.15175996,1148.0,1146.3,0.5563354]
[1761540316494,0.15175996,1148.0,1145.9,0.64860815]
[1761540316689,0.15175996,1148.0,1146.0,0.55622205]
[1761540316890,0.15175996,1148.0,1146.1,0.55622205]
[1761540317090,0.15175996,1148.0,1146.2,0.55622205]
[1761540317394,0.15175996,1148.0,1146.3,0.55622205]
[1761540317595,0.15175996,1148.0,1145.9,0.64860815]
[1761540317794,0.15175996,1148.0,1146.0,0.55610846]
[1761540318095,0.15175996,1148.0,1146.1,0.55610846]
[1761540318295,0.15175996,1148.0,1146.2,0.55610846]
[1761540318496,0.15175996,1148.0,1146.3,0.55610846]
[1761540318796,2.15100723,1148.9,1145.9,0.64860815]
[1761540318991,2.15100723,1148.9,1146.0,0.55597887]
[1761540319194,0.15172158,1148.2,1146.1,0.55597887]
[1761540319397,0.15172158,1148.2,1146.2,0.55597887]
[1761540319596,0.15172158,1148.2,1146.3,0.55597887]
[1761540319793,0.15172158,1148.2,1146.4,0.55597887]
[1761540319995,0.15172158,1148.2,1146.5,0.55597887]
[1761540320195,0.15172158,1148.2,1145.7,0.64860815]
[1761540320394,0.15172158,1148.2,1145.8,0.55570464]
[1761540320598,0.15172158,1148.2,1145.9,0.55570464]
[1761540320894,0.15172158,1148.2,1146.0,0.55570464]
[1761540321099,0.15172158,1148.2,1146.1,0.55570464]
[1761540321293,0.15172158,1148.2,1146.2,0.55570464]
[1761540321494,0.15172158,1148.2,1146.3,0.55570464]
[1761540321798,0.15172158,1148.2,1146.4,0.55550146]
[1761540321998,0.15172158,1148.2,1146.1,0.64860815]
[1761540322297,0.15172158,1148.2,1146.2,0.55550146]
[1761540322494,0.15172158,1148.2,1146.3,0.55550146]
[1761540322796,0.15172158,1148.2,1146.4,0.55550146]
[1761540322995,0.15172158,1148.2,1146.5,0.55550146]
[1761540323198,0.15172158,1148.2,1146.0,0.64860815]
[1761540323398,0.15172158,1148.2,1146.1,0.55534293]
[1761540323596,0.15172158,1148.2,1146.2,0.55534293]
[1761540323795,0.15172158,1148.2,1146.3,0.55534293]
[1761540323998,0.15172158,1148.2,1146.4,0.55534293]
[1761540324197,0.15172158,1148.2,1146.5,0.55534293]
[1761540324398,0.15172158,1148.2,1146.0,0.64860815]
[1761540324599,0.15172158,1148.2,1146.1,0.55531021]
[1761540324795,0.15172158,1148.2,1146.0,0.64860815]
[1761540324796,0.15172158,1148.2,1146.2,0.55531021]
[1761540324995,0.15172158,1148.2,1146.3,0.55531021]
[1761540325199,0.15172158,1148.2,1146.4,0.55531021]
[1761540325400,0.15172158,1148.2,1146.0,0.64860815]
[1761540325598,0.15172158,1148.2,1146.1,0.55518358]
[1761540325802,0.15172158,1148.2,1146.2,0.55518358]
[1761540325998,0.15172158,1148.2,1146.3,0.55518358]
[1761540326197,0.15172158,1148.2,1146.4,0.55518358]
[1761540326400,0.15172158,1148.2,1146.0,0.64860815]
[1761540326603,0.15172158,1148.2,1146.1,0.55506914]
[1761540326800,0.15172158,1148.2,1146.2,0.55506914]
[1761540327000,0.15172158,1148.2,1146.3,0.55506914]
[1761540327305,0.15172158,1148.2,1146.4,0.55506914]
[1761540327505,0.15172158,1148.2,1146.0,0.64860815]
[1761540327807,0.15172158,1148.2,1146.1,0.55497058]
[1761540328003,0.15172158,1148.2,1146.2,0.55497058]
[1761540328204,0.15172158,1148.2,1146.3,0.55497058]
[1761540328404,0.15172158,1148.2,1146.4,0.55497058]
[1761540328604,2.15100723,1149.5,1146.5,0.55497058]
[1761540328803,2.15100723,1149.6,1146.6,0.55497058]
[1761540329007,0.15167827,1148.6,1146.7,0.55497058]
[1761540329203,2.15100723,1149.6,1146.2,0.64860815]
[1761540329408,0.15166868,1148.4,1146.3,0.55459937]
[1761540329604,0.15166868,1148.4,1146.4,0.55459937]
[1761540329903,2.15100723,1149.5,1146.5,0.55459937]
[1761540330107,0.1516819,1148.4,1146.6,0.55459937]
[1761540330305,2.15100723,1149.5,1146.3,0.64860815]
[1761540330306,2.15100723,1149.6,1146.7,0.55459937]
[1761540330503,2.15100723,1149.6,1146.3,0.64860815]
[1761540330702,0.15167529,1148.4,1146.4,0.55444674]
[1761540330904,2.15100723,1149.6,1146.5,0.55444674]
[1761540331104,0.1516786,1148.4,1146.6,1.97444674]
[1761540331306,0.1516786,1148.4,1146.7,0.55444674]
[1761540331610,0.1516667,1148.5,1146.8,0.55444674]
[1761540331811,0.1516667,1148.5,1146.6,1.42]
[1761540332013,0.1516667,1148.5,1146.7,0.554291]
[1761540332212,0.1516667,1148.5,1146.6,1.42]
[1761540332507,0.1516667,1148.5,1146.7,0.55416878]
[1761540332711,0.1516667,1148.5,1146.6,1.42]
[1761540332909,0.1516667,1148.5,1146.7,0.55416878]
[1761540333109,0.1516667,1148.5,1146.6,1.42]
[1761540333408,0.1516667,1148.5,1146.7,0.55416878]
[1761540333609,0.1516667,1148.5,1146.6,1.42]
[1761540333813,0.1516667,1148.5,1146.7,0.55407476]
[1761540334113,0.1516667,1148.5,1146.6,1.42]
[1761540334318,0.1516667,1148.5,1146.7,0.55406962]
[1761540334515,0.1516667,1148.5,1146.6,1.42]
[1761540334721,0.1516667,1148.5,1146.7,0.55398945]
[1761540334916,0.1516667,1148.5,1146.6,1.42]
[1761540335120,0.1516667,1148.5,1146.7,0.55399449]
[1761540335321,0.1516667,1148.5,1146.6,1.42]
[1761540335522,0.1516667,1148.5,1146.7,0.55393627]
[1761540335817,0.1516667,1148.5,1146.6,1.42]
[1761540336021,0.1516667,1148.5,1146.7,0.5539413]
[1761540336317,0.1516667,1148.5,1146.6,1.42]
[1761540336521,0.1516667,1148.5,1146.7,0.55389592]
[1761540336721,0.1516667,1148.5,1146.6,1.42]
[1761540337022,0.1516667,1148.5,1146.7,0.55389571]
[1761540337223,0.1516667,1148.5,1146.6,1.42]
[1761540345626,0.1516667,1148.5,1146.7,0.55441788]
[1761540345830,0.1516667,1148.5,1146.6,1.42]
[1761540346027,0.1516667,1148.5,1146.7,0.55439324]
[1761540346231,0.1516667,1148.5,1146.8,0.55438501]
[1761540346535,0.1516667,1148.5,1146.6,1.42]
[1761540346830,0.1516667,1148.5,1146.7,0.55447762]
[1761540347028,0.1516667,1148.5,1146.8,0.55447762]
[1761540347328,0.1516667,1148.5,1146.6,1.42]
[1761540347525,0.1516667,1148.5,1146.7,0.55457669]
[1761540347726,0.1516667,1148.5,1146.8,0.55457669]
[1761540347932,0.1516667,1148.5,1146.6,1.42]
[1761540348138,0.1516667,1148.5,1146.7,0.55458307]
[1761540348326,0.1516667,1148.5,1146.8,0.55458307]
[1761540348628,0.1516667,1148.5,1146.6,1.42]
[1761540348831,0.1516667,1148.5,1146.7,0.55469194]
[1761540349029,0.1516667,1148.5,1146.6,1.42]
[1761540349229,0.1516667,1148.5,1146.7,0.55469194]
[1761540349530,0.1516667,1148.5,1146.6,1.42]
[1761540349831,0.1516667,1148.5,1146.7,0.55482395]
[1761540350028,0.1516667,1148.5,1146.6,1.42]
[1761540350228,0.1516667,1148.5,1146.7,0.5548188]
[1761540350432,0.1516667,1148.5,1146.6,1.42]
[1761540350729,0.1516667,1148.5,1146.7,0.55496017]
[1761540350930,0.1516667,1148.5,1146.6,1.42]
[1761540351133,0.1516667,1148.5,1146.7,0.55495942]
[1761540351333,0.1516667,1148.5,1146.6,1.42]
[1761540351531,0.1516667,1148.5,1146.7,0.5551167]
[1761540351734,0.1516667,1148.5,1146.6,1.42]
[1761540351934,0.1516667,1148.5,1146.7,0.55511649]
[1761540352135,0.1516667,1148.5,1146.6,1.42]
[1761540352335,0.1516667,1148.5,1146.7,0.5551167]
[1761540352634,0.1516667,1148.5,1146.6,1.42]
[1761540352833,0.1516667,1148.5,1146.7,0.5552705]
[1761540353032,0.1516667,1148.5,1146.6,1.42]
[1761540353238,0.1516667,1148.5,1146.7,0.5552705]
[1761540353530,0.1516667,1148.5,1146.6,1.42]
[1761540353734,0.1516667,1148.5,1146.7,0.55545423]
[1761540353935,0.1516667,1148.5,1146.6,1.42]
[1761540354135,0.1516667,1148.5,1146.7,0.55545423]
[1761540354334,0.1516667,1148.5,1146.6,1.42]
[1761540354535,0.1516667,1148.5,1146.7,0.55662193]
[1761540354735,0.1516667,1148.5,1146.6,1.42]
[1761540355036,0.1516667,1148.5,1146.7,0.55661687]